bitfinex-derivatives/quotes_ETHF0:USTF0_20241024
["timestamp","ask_amount","ask_price","bid_price","bid_amount"]
[1729782112402,0.99099,2524.6,2524.0,0.39648]
[1729782112608,0.39647,2524.2,2524.0,0.39648]
[1729782112808,0.39649,2524.0,2523.9,0.3965]
[1729782113110,0.39649,2524.0,2523.9,0.39649]
[1729782113301,0.4373,2524.1,2523.8,4.8718]
[1729782113701,0.83378,2524.1,2524.0,0.39649]
[1729782114203,0.39646,2524.2,2524.1,0.39646]
[1729782114610,0.39643,2524.4,2524.0,0.39648]
[1729782114803,0.39646,2524.2,2524.1,0.39647]
[1729782115507,3.6397,2524.5,2523.9,0.4803]
[1729782115902,3.6397,2524.5,2524.4,0.39643]
[1729782116102,3.2078,2524.9,2524.5,0.39641]
[1729782116303,3.2078,2524.9,2524.8,0.39636]
[1729782116603,3.2078,2524.9,2524.5,0.3964]
[1729782116907,0.39639,2524.6,2524.5,0.3964]
[1729782117813,0.4307,2524.8,2524.2,0.99115]
[1729782118002,0.39639,2524.7,2524.3,0.39644]
[1729782118202,0.39639,2524.6,2524.5,0.3964]
[1729782118403,0.4307,2524.8,2524.1,4.8718]
[1729782118602,0.39641,2524.6,2524.5,0.39641]
[1729782119407,0.39642,2524.5,2524.4,0.39641]
[1729782119607,1.42162,2524.8,2524.1,3.2078]
[1729782119809,0.99095,2524.7,2524.0,2.0822]
[1729782120002,0.39644,2524.4,2524.0,3.07341]
[1729782120199,0.99095,2524.7,2523.9,0.4803]
[1729782120504,3.6385,2524.8,2523.6,4.18422712]
[1729782120505,0.99115,2524.2,2523.6,4.18422712]
[1729782120713,0.39652,2523.9,2523.8,0.39651]
[1729782121103,0.3965,2524.0,2523.9,0.3965]
[1729782121504,0.39654,2523.8,2523.7,0.39652]
[1729782123210,0.39654,2523.8,2523.5,3.2078]
[1729782123211,0.39655,2523.6,2523.5,3.2078]
[1729782125006,0.39657,2523.5,2523.4,0.39657]
[1729782125207,0.4423,2523.7,2523.0,3.2078]
[1729782125416,0.4423,2523.7,2523.2,0.3966]
[1729782125417,0.39662,2523.3,2523.2,0.3966]
[1729782127713,3.9632,2523.3,2522.6,3.47426552]
[1729782127907,3.2078,2523.2,2522.6,3.2078]
[1729782128113,0.4146,2523.1,2522.6,3.2078]
[1729782128515,0.39667,2522.9,2522.8,0.39667]
[1729782129007,0.39666,2523.0,2522.9,0.39665]
[1729782129411,0.81123,2523.1,2523.0,0.39665]
[1729782129911,0.4146,2523.1,2523.0,0.39665]
[1729782130321,3.2078,2523.2,2522.6,7.39202712]
[1729782130619,0.3966,2523.3,2523.2,0.3966]
[1729782130807,3.6325,2523.5,2523.3,0.39659]
[1729782130808,0.39659,2523.4,2523.3,0.39659]
[1729782131003,3.2078,2523.9,2523.1,5.17580712]
[1729782131311,3.2078,2523.9,2523.4,4.18422712]
[1729782131312,3.6325,2523.9,2523.4,4.18422712]
[1729782131622,3.6325,2523.9,2523.8,0.39652]
[1729782131623,4.02901,2523.9,2523.8,0.39652]
[1729782131807,3.6325,2523.9,2523.8,0.39652]
[1729782132317,4.029,2523.9,2523.8,0.39652]
[1729782132513,0.4247,2523.9,2523.8,0.39652]
[1729782132917,0.85155,2524.3,2524.2,0.39646]
[1729782133106,0.4414,2524.4,2523.8,3.60432]
[1729782133107,4.02893,2524.4,2523.8,3.60432]
[1729782133307,0.82113,2524.4,2524.3,0.39644]
[1729782133507,0.3964,2524.6,2524.0,0.99123]
[1729782133817,3.2078,2524.8,2524.0,0.99123]
[1729782133818,3.667,2524.8,2524.1,3.2078]
[1729782134421,0.39643,2524.4,2524.3,0.39643]
[1729782134810,0.39642,2524.5,2524.4,0.39642]
[1729782135216,3.667,2524.8,2524.1,3.2078]
[1729782135513,0.3964,2524.6,2524.1,3.2078]
[1729782135717,0.39638,2524.7,2524.6,0.39638]
[1729782135921,3.667,2524.8,2524.2,1.41374]
[1729782136120,0.39638,2524.7,2524.6,0.39639]
[1729782136921,4.06337,2524.8,2524.7,0.39638]
[1729782137216,3.667,2524.8,2524.1,3.2078]
[1729782137405,0.39646,2524.2,2524.1,3.2078]
[1729782137611,0.39646,2524.2,2524.0,0.39649]
[1729782137809,4.18422712,2524.6,2523.9,3.2078]
[1729782138016,4.18422712,2524.6,2524.0,0.61990974]
[1729782138316,4.18422712,2524.6,2523.9,3.6043]
[1729782138317,0.39649,2524.0,2523.9,3.6043]
[1729782138512,3.2078,2524.3,2523.9,4.34821742]
[1729782138714,0.82847,2524.2,2524.1,0.39647]
[1729782139118,0.39648,2524.1,2524.0,0.39649]
[1729782139315,0.82846,2524.2,2524.1,0.39647]
[1729782139506,0.82846,2524.2,2524.1,1.01641194]
[1729782139507,0.432,2524.2,2524.1,1.01641194]
[1729782139711,0.4391,2524.4,2524.1,4.70552428]
[1729782140020,3.2078,2524.7,2524.2,0.61989717]
[1729782140221,3.2078,2524.7,2524.6,0.39639]
[1729782140414,0.39638,2524.7,2524.6,1.14025221]
[1729782140615,0.4538,2524.8,2524.6,1.14025221]
[1729782140915,0.85016,2524.8,2524.7,0.39638]
[1729782141111,0.4538,2524.8,2524.7,0.52034063]
[1729782141311,0.84413,2525.1,2525.0,0.39633]
[1729782141718,0.84413,2525.1,2525.0,0.12394794]
[1729782141719,0.4478,2525.1,2525.0,0.12394794]
[1729782141912,0.4478,2525.1,2525.0,0.52027794]
[1729782141913,0.84412,2525.1,2525.0,0.52027794]
[1729782142111,0.84412,2525.1,2525.0,1.14000482]
[1729782142918,0.3963,2525.2,2525.0,0.74367482]
[1729782143112,3.2078,2526.0,2525.1,8.13568452]
[1729782143314,0.3962,2525.9,2525.8,0.39621]
[1729782143618,0.4169,2526.1,2526.0,0.39617]
[1729782143819,0.4169,2526.1,2526.0,1.33785034]
[1729782144015,0.39615,2526.2,2526.0,1.33785034]
[1729782144211,0.39615,2526.2,2526.1,0.74344651]
[1729782144610,0.39614,2526.2,2526.1,0.12389543]
[1729782144817,3.60394,2526.2,2526.1,0.12389543]
[1729782145120,3.60394,2526.2,2526.1,0.94159335]
[1729782145318,3.60394,2526.2,2526.1,0.12389543]
[1729782145926,0.3962,2525.9,2525.7,3.60401]
[1729782146113,0.39619,2525.9,2525.8,1.21394437]
[1729782146310,0.39618,2526.0,2525.9,0.39619]
[1729782146515,3.2078,2526.2,2526.1,0.39616]
[1729782146917,0.4169,2526.6,2526.1,4.77604837]
[1729782147121,0.39606,2526.8,2526.6,0.39607]
[1729782147319,3.60385,2526.9,2526.7,0.39606]
[1729782147620,0.4433,2527.1,2526.4,5.17451712]
[1729782147822,0.39602,2527.0,2526.8,0.39604]
[1729782148423,0.39601,2527.1,2526.9,0.39603]
[1729782148823,3.60379,2527.2,2527.0,0.39602]
[1729782149020,3.2078,2527.2,2527.1,0.396]
[1729782149222,3.2078,2527.9,2527.1,8.14102712]
[1729782149420,3.2078,2527.9,2527.2,3.2078]
[1729782149621,0.39595,2527.5,2527.2,3.2078]
[1729782149928,0.39593,2527.6,2527.3,0.39597]
[1729782150225,0.39593,2527.6,2526.9,1.661]
[1729782150226,1.38574,2527.6,2526.9,1.661]
[1729782150526,0.39602,2527.0,2526.9,1.661]
[1729782150918,0.39608,2526.6,2526.5,0.454]
[1729782151121,0.39608,2526.6,2526.4,3.2078]
[1729782151122,3.2078,2527.0,2526.4,3.2078]
[1729782151319,0.39607,2526.7,2526.4,3.6039]
[1729782151515,44.0078,2527.0,2526.4,3.2078]
[1729782151719,0.39609,2526.6,2526.4,3.60391]
[1729782151919,0.39607,2526.7,2526.5,0.39609]
[1729782152531,44.0078,2527.0,2526.4,3.2078]
[1729782152729,0.39609,2526.6,2526.4,3.6039]
[1729782153025,44.0078,2527.0,2526.4,3.2078]
[1729782153225,0.3961,2526.5,2526.4,3.2078]
[1729782153625,3.9584,2526.5,2526.0,3.2078]
[1729782153829,0.39611,2526.5,2526.3,0.39612]
[1729782154027,0.39612,2526.4,2526.2,0.39614]
[1729782154419,3.2078,2526.7,2526.2,0.39614]
[1729782154632,0.39615,2526.2,2526.0,5.26697]
[1729782155122,0.39614,2526.3,2526.1,0.39616]
[1729782155335,0.39612,2526.4,2526.2,0.39613]
[1729782155922,0.4549,2526.6,2526.0,4.8708]
[1729782156119,0.39612,2526.4,2526.2,0.39614]
[1729782157035,0.4549,2526.6,2526.0,4.8708]
[1729782157532,0.99025,2526.5,2526.0,3.2078]
[1729782157729,0.39616,2526.1,2526.0,3.2078]
[1729782158123,0.39621,2525.8,2525.6,2.05923]
[1729782158330,3.2078,2526.2,2525.6,1.663]
[1729782158631,0.428,2526.1,2525.6,2.05923]
[1729782158830,0.39622,2525.8,2525.6,1.663]
[1729782159035,0.39617,2526.0,2525.8,0.3962]
[1729782159229,0.82417,2526.1,2525.6,5.84722712]
[1729782159424,0.39617,2526.1,2526.0,0.39617]
[1729782159635,3.2078,2526.2,2525.8,4.18422712]
[1729782159828,3.60394,2526.2,2526.1,0.39616]
[1729782160030,3.60394,2526.2,2525.9,0.39618]
[1729782160031,0.39617,2526.1,2525.9,0.39618]
[1729782160332,3.2078,2526.2,2525.9,0.39618]
[1729782160333,0.39617,2526.0,2525.9,0.39618]
[1729782160537,3.60396,2526.2,2525.8,5.84722712]
[1729782160725,0.39616,2526.1,2525.8,5.84722712]
[1729782160924,0.39618,2526.0,2525.9,0.39619]
[1729782161132,0.39617,2526.1,2526.0,0.39617]
[1729782161638,0.39617,2526.1,2525.8,4.8708]
[1729782161938,0.99033,2526.3,2525.5,7.39202712]
[1729782162138,0.39621,2525.8,2525.6,0.39623]
[1729782162339,0.39617,2526.1,2525.9,0.39619]
[1729782162729,0.39617,2526.0,2525.9,0.39619]
[1729782163036,0.39615,2526.2,2526.0,0.39617]
[1729782163234,0.428,2526.5,2525.8,3.604]
[1729782163235,0.39619,2526.0,2525.8,3.604]
[1729782163540,0.39619,2525.9,2525.8,0.3962]
[1729782163843,0.39622,2525.7,2525.5,4.8708]
[1729782164039,0.99037,2526.2,2525.5,3.2078]
[1729782164040,0.39624,2525.6,2525.5,3.2078]
[1729782165834,0.4142,2525.8,2525.4,0.39626]
[1729782166034,0.4142,2525.8,2525.2,0.4214]
[1729782166240,0.39625,2525.5,2525.4,0.39625]
[1729782166438,0.4142,2525.8,2525.3,4.18422712]
[1729782166737,0.3962,2525.9,2525.8,0.3962]
[1729782167154,1.41102,2526.1,2525.4,3.2078]
[1729782167450,0.39623,2525.7,2525.6,0.39623]
[1729782168133,1.41102,2526.1,2525.4,3.2078]
[1729782168329,0.3962,2525.9,2525.4,3.2078]
[1729782168534,0.39623,2525.7,2525.6,0.39623]
[1729782169543,0.39622,2525.8,2525.7,0.39621]
[1729782170039,1.41102,2526.1,2525.4,3.2078]
[1729782170238,0.39623,2525.7,2525.6,0.39622]
[1729782170434,3.6284,2526.1,2525.4,3.2078]
[1729782170634,0.39625,2525.5,2525.4,3.2078]
[1729782170832,0.39625,2525.5,2525.4,0.39627]
[1729782171235,0.4257,2525.6,2525.2,0.4214]
[1729782171434,0.82195,2525.6,2525.5,0.39625]
[1729782172338,0.4257,2525.6,2525.3,4.18422712]
[1729782172544,0.39625,2525.6,2525.5,0.39624]
[1729782172948,3.2078,2525.8,2525.3,4.18422712]
[1729782173140,0.39627,2525.5,2525.4,0.39626]
[1729782174039,0.39627,2525.4,2525.2,0.81769]
[1729782174245,0.39628,2525.3,2525.2,0.39629]
[1729782174434,1.43707,2525.7,2525.0,10.09412712]
[1729782174435,1.43707,2525.7,2525.0,11.08495712]
[1729782174741,0.39627,2525.5,2525.4,0.39626]
[1729782174939,1.43707,2525.7,2525.1,0.9908]
[1729782175245,1.43707,2525.7,2525.1,0.39631]
[1729782175246,0.39632,2525.2,2525.1,0.39631]
[1729782176244,0.5026,2525.3,2524.8,5.60753712]
[1729782176443,0.89889,2525.3,2525.2,0.3963]
[1729782176644,1.44655,2525.5,2524.9,1.11479241]
[1729782176645,0.39626,2525.5,2525.4,0.39625]
[1729782176842,0.4465,2525.7,2525.0,7.39202712]
[1729782176843,0.3963,2525.3,2525.2,0.39628]
[1729782177242,0.3963,2525.3,2525.2,4.35628]
[1729782177440,0.89888,2525.4,2525.3,0.39628]
[1729782178349,0.89888,2525.4,2525.1,0.99079]
[1729782178350,0.4549,2525.6,2525.1,0.99079]
[1729782178551,0.39626,2525.5,2525.4,0.39625]
[1729782178756,3.7104,2525.8,2525.2,5.17497712]
[1729782179049,0.39626,2525.6,2525.5,0.39624]
[1729782179248,0.39627,2525.5,2525.4,0.39625]
[1729782179447,0.39627,2525.5,2525.4,0.5201674]
[1729782180246,3.7104,2525.8,2525.4,0.1239174]
[1729782180439,3.7104,2525.8,2525.0,7.39202712]
[1729782180440,0.39625,2525.6,2525.5,0.39624]
[1729782180949,0.99059,2525.7,2525.0,8.38285712]
[1729782181154,4.70093,2525.8,2525.1,2.1809831]
[1729782181155,0.8646,2525.5,2525.1,2.1809831]
[1729782181355,0.39628,2525.4,2525.3,0.39627]
[1729782181553,0.39628,2525.4,2525.3,0.1239195]
[1729782182250,5.06306,2525.5,2524.8,3.24631]
[1729782182446,0.39631,2525.3,2525.2,0.39628]
[1729782182650,0.39631,2525.3,2525.2,0.52021692]
[1729782182852,1.85526,2525.5,2525.3,0.39627]
[1729782182853,0.39628,2525.4,2525.3,0.39627]
[1729782183050,0.8646,2525.5,2525.4,0.39627]
[1729782183051,0.83787,2525.5,2525.4,0.39627]
[1729782183359,0.39625,2525.6,2525.5,0.39623]
[1729782183554,0.39625,2525.6,2525.5,0.52014157]
[1729782183752,4.2066,2525.8,2525.5,0.12391157]
[1729782183956,0.5026,2525.8,2525.7,0.39622]
[1729782184258,0.39616,2526.2,2526.1,0.39615]
[1729782184450,0.39618,2526.1,2526.0,0.39617]
[1729782185365,0.39618,2526.1,2526.0,0.52006455]
[1729782185655,0.39618,2526.1,2526.0,0.12389455]
[1729782185860,0.39619,2525.9,2525.8,0.3962]
[1729782186160,0.39619,2525.9,2525.8,1.13959596]
[1729782186361,4.35539,2525.9,2525.8,0.12389766]
[1729782186556,4.35539,2525.9,2525.3,0.04761263]
[1729782186557,0.99058,2525.7,2525.3,0.39627]
[1729782186756,0.99058,2525.7,2525.1,0.04761263]
[1729782186757,0.39625,2525.5,2525.4,0.94175629]
[1729782187270,0.39625,2525.5,2525.4,1.33802629]
[1729782187658,2.04744,2525.8,2525.4,1.33802629]
[1729782187659,0.39622,2525.7,2525.6,0.39622]
[1729782187866,0.39622,2525.7,2525.6,0.52013245]
[1729782188366,0.39622,2525.7,2525.6,0.12391245]
[1729782188670,0.39622,2525.7,2525.0,9.77273975]
[1729782188671,3.9592,2525.7,2525.0,9.77273975]
[1729782188967,0.3963,2525.3,2525.2,0.39628]
[1729782189168,0.3963,2525.3,2525.2,1.33806114]
[1729782189375,0.3963,2525.3,2525.2,0.12391591]
[1729782189866,0.3963,2525.3,2525.2,0.52021591]
[1729782190069,0.3963,2525.3,2525.2,0.12391591]
[1729782190667,0.39631,2525.2,2525.1,0.3963]
[1729782190863,0.39631,2525.2,2525.1,0.52022611]
[1729782191170,0.39631,2525.2,2525.1,0.3963]
[1729782191572,0.39632,2525.2,2525.1,0.3963]
[1729782192167,0.4996,2525.4,2525.0,3.2078]
[1729782192360,8.81969062,2526.6,2525.1,4.18422712]
[1729782192361,0.5271,2525.8,2525.1,4.18422712]
[1729782192557,0.39626,2525.6,2525.5,0.39624]
[1729782192762,0.39628,2525.4,2525.3,0.39627]
[1729782192964,0.39631,2525.2,2525.1,0.39629]
[1729782193570,0.39632,2525.1,2525.0,3.60412]
[1729782193768,0.5042,2525.3,2525.0,3.33172639]
[1729782193964,0.39631,2525.2,2525.1,0.3963]
[1729782194162,0.39627,2525.5,2525.4,0.39625]
[1729782194869,0.3963,2525.3,2525.2,0.39628]
[1729782195374,0.39631,2525.2,2525.1,0.3963]
[1729782196367,0.39631,2525.2,2525.1,0.12392967]
[1729782196566,3.2078,2525.3,2524.7,1.917]
[1729782196767,0.93333,2525.1,2525.0,0.39632]
[1729782196971,0.537,2525.1,2525.0,0.39632]
[1729782197170,3.7049,2525.3,2525.2,0.39628]
[1729782197171,0.3963,2525.3,2525.2,0.39628]
[1729782197674,0.39628,2525.4,2525.3,0.39626]
[1729782198063,4.2452,2525.6,2524.9,2.02405]
[1729782198267,0.39631,2525.2,2525.1,0.3963]
[1729782198466,0.39631,2525.2,2525.1,0.52022818]
[1729782198668,0.39629,2525.3,2525.2,0.39628]
[1729782198870,0.39629,2525.3,2525.2,0.12392824]
[1729782199168,0.99065,2525.5,2524.9,1.0332]
[1729782199370,0.3963,2525.3,2525.2,0.39629]
[1729782199570,0.3963,2525.3,2525.2,0.52021866]
[1729782199772,0.3963,2525.3,2525.2,0.12392866]
[1729782200076,0.9907,2525.4,2524.9,1.0332]
[1729782200263,0.39633,2525.1,2525.0,0.7185458]
[1729782200977,0.3963,2525.3,2525.2,0.39629]
[1729782201274,3.2078,2525.5,2525.4,0.39627]
[1729782201478,0.39625,2525.5,2525.4,0.39627]
[1729782201772,0.39628,2525.4,2525.3,0.39627]
[1729782201973,0.39628,2525.4,2525.3,0.52019327]
[1729782202368,0.39626,2525.5,2525.4,0.39625]
[1729782202574,0.39627,2525.4,2525.3,0.39627]
[1729782202865,0.39627,2525.4,2525.3,0.52019312]
[1729782203173,0.39627,2525.4,2525.3,0.52020666]
[1729782203381,2.028,2525.6,2525.3,0.12392666]
[1729782203382,1.0374,2525.6,2525.3,0.12392666]
[1729782203676,0.39627,2525.5,2525.4,0.52017666]
[1729782203867,0.39627,2525.5,2525.4,0.12392666]
[1729782204770,0.39627,2525.5,2525.4,0.52019666]
[1729782205372,0.39627,2525.5,2525.4,0.12392666]
[1729782205581,3.7426,2525.6,2525.4,0.12392666]
[1729782205779,3.7426,2525.6,2525.5,0.39625]
[1729782205780,4.13884,2525.6,2525.5,0.39625]
[1729782205981,4.13884,2525.6,2525.5,0.52016901]
[1729782206477,4.13884,2525.6,2525.5,0.39625]
[1729782206772,0.39627,2525.5,2525.4,0.39626]
[1729782206978,0.93104,2525.6,2525.5,0.39625]
[1729782207281,0.39629,2525.4,2525.3,0.39628]
[1729782207579,0.39629,2525.4,2525.3,0.71847933]
[1729782208585,0.39629,2525.4,2525.3,1.33809432]
[1729782208769,0.39629,2525.4,2525.3,0.71847933]
[1729782209181,0.39629,2525.4,2525.3,1.33810568]
[1729782210189,0.39629,2525.4,2525.3,0.39628]
[1729782210484,0.39629,2525.4,2525.3,1.3381025]
[1729782210680,0.39629,2525.4,2525.3,1.33809032]
[1729782210871,0.5348,2525.6,2525.3,0.94181032]
[1729782211071,0.5044,2525.8,2525.4,4.34462251]
[1729782211275,0.39621,2525.8,2525.7,0.39622]
[1729782211479,0.5389,2526.0,2525.7,0.39622]
[1729782211480,0.93508,2526.0,2525.9,0.39619]
[1729782211681,0.5418,2526.2,2525.9,4.47931401]
[1729782211883,0.93503,2526.3,2526.2,0.39614]
[1729782212084,0.3961,2526.5,2526.4,0.39611]
[1729782212277,0.3961,2526.5,2526.4,0.51998757]
[1729782212988,0.3961,2526.5,2526.4,0.12387757]
[1729782213371,0.3961,2526.5,2526.0,4.42093644]
[1729782213372,0.3961,2526.5,2526.2,0.39614]
[1729782213576,0.39613,2526.3,2526.2,0.39614]
[1729782213973,0.39613,2526.3,2526.2,0.71822567]
[1729782214181,1.0807,2526.6,2526.2,0.1238791]
[1729782214382,1.0807,2526.6,2526.3,0.1238791]
[1729782214580,1.0807,2526.6,2526.5,0.3961]
[1729782214785,4.19785,2527.0,2526.3,4.19812]
[1729782214977,1.0389,2526.9,2526.8,0.39605]
[1729782215177,0.51,2526.9,2526.8,0.39605]
[1729782215484,0.51,2526.9,2526.5,0.4988]
[1729782215799,0.51,2526.9,2526.3,5.1248]
[1729782216083,0.51,2526.9,2526.7,0.39605]
[1729782216084,0.39606,2526.8,2526.7,0.39605]
[1729782216681,0.51,2526.9,2526.4,0.99028]
[1729782216888,0.51,2526.9,2526.8,0.39605]
[1729782217084,0.90603,2526.9,2526.8,0.39605]
[1729782217485,0.39608,2526.6,2526.5,0.94098]
[1729782217681,0.39608,2526.6,2526.5,0.39608]
[1729782217986,0.39609,2526.6,2526.5,0.39608]
[1729782218683,0.5286,2526.8,2526.3,3.2078]
[1729782218884,0.39611,2526.4,2526.3,3.2078]
[1729782219087,0.99019,2526.7,2525.8,1.53431]
[1729782219088,0.99025,2526.5,2525.9,3.2078]
[1729782219283,0.39617,2526.0,2525.6,5.6404]
[1729782219481,0.39617,2526.0,2525.9,0.39618]
[1729782219691,0.4977,2526.3,2525.6,3.42319]
[1729782219692,0.4946,2526.2,2525.6,3.42319]
[1729782219983,0.39617,2526.1,2526.0,0.39617]
[1729782220389,0.4946,2526.2,2526.1,0.39616]
[1729782220390,0.39614,2526.2,2526.1,0.39616]
[1729782220585,0.4977,2526.3,2525.7,0.99056]
[1729782220890,0.4977,2526.3,2525.7,1.53336]
[1729782221085,0.4977,2526.3,2526.2,0.39614]
[1729782221086,0.89384,2526.3,2526.2,0.39614]
[1729782221782,0.39613,2526.3,2526.2,0.39613]
[1729782222382,0.39612,2526.4,2526.3,0.39612]
[1729782223185,0.5277,2526.5,2525.9,8.90223676]
[1729782223392,0.5277,2526.5,2526.0,0.123876]
[1729782223585,0.92381,2526.5,2526.4,0.39611]
[1729782225289,0.5277,2526.5,2526.4,0.39611]
[1729782225492,0.39608,2526.6,2526.3,0.39613]
[1729782225787,0.39608,2526.6,2526.2,4.19815]
[1729782225788,0.39608,2526.6,2526.5,0.3961]
[1729782225991,0.5102,2526.9,2526.4,0.5273]
[1729782226192,0.5102,2526.9,2526.5,0.39609]
[1729782226193,0.39609,2526.6,2526.5,0.39609]
[1729782226385,0.39609,2526.6,2526.4,0.5273]
[1729782226586,0.5102,2526.9,2526.4,0.5273]
[1729782227088,0.39607,2526.7,2526.6,0.39607]
[1729782227286,0.5102,2526.9,2526.4,0.5273]
[1729782227481,0.90623,2526.9,2526.4,4.71326676]
[1729782227687,0.5102,2526.9,2526.8,0.39605]
[1729782227883,0.90623,2526.9,2526.8,0.39605]
[1729782228183,4.4678,2526.9,2526.4,2.4193]
[1729782228384,4.4678,2526.9,2526.4,2.28811]
[1729782228385,0.3961,2526.5,2526.4,2.28811]
[1729782228890,0.5102,2526.9,2526.1,1.0634]
[1729782229195,0.39613,2526.3,2526.2,0.39614]
[1729782229498,3.2078,2526.7,2525.9,7.65168106]
[1729782229499,0.99022,2526.6,2525.9,7.65168106]
[1729782229688,0.99022,2526.6,2526.2,0.39613]
[1729782229689,0.39614,2526.3,2526.2,0.39613]
[1729782229899,1.0672,2526.5,2525.9,8.64215106]
[1729782230089,0.39613,2526.4,2526.3,0.39612]
[1729782230487,0.39617,2526.1,2526.0,0.39616]
[1729782231490,0.4939,2526.4,2526.0,3.9584]
[1729782231687,0.89003,2526.4,2526.3,0.39613]
[1729782231996,0.39612,2526.4,2526.3,0.39611]
[1729782232592,0.39611,2526.5,2526.4,0.3961]
[1729782232797,0.90119,2526.6,2526.5,0.3961]
[1729782232995,0.90119,2526.6,2526.2,0.99036]
[1729782232996,0.39611,2526.5,2526.4,0.3961]
[1729782233296,0.39613,2526.4,2526.3,0.39612]
[1729782233496,0.39614,2526.3,2526.2,0.39613]
[1729782234397,0.5271,2526.5,2526.1,3.60395]
[1729782234398,0.39614,2526.2,2526.1,3.60395]
[1729782234798,0.5271,2526.5,2526.1,3.2078]
[1729782235295,0.39614,2526.2,2526.1,3.60395]
[1729782236292,0.9903,2526.4,2525.9,0.39618]
[1729782236495,0.39617,2526.0,2525.9,0.39618]
[1729782237498,0.93837,2526.1,2526.0,0.39617]
[1729782238396,3.2078,2526.7,2526.0,3.9584]
[1729782238601,0.39613,2526.4,2526.3,0.39611]
[1729782238898,0.39613,2526.4,2526.1,3.4017964]
[1729782238899,0.9365,2526.5,2526.4,0.39611]
[1729782239797,0.9365,2526.5,2526.1,4.3921864]
[1729782239798,0.39614,2526.3,2526.1,3.4017964]
[1729782240101,0.39616,2526.2,2526.1,0.39614]
[1729782240307,0.39614,2526.3,2526.2,0.39612]
[1729782240800,0.5404,2526.5,2526.0,0.99044]
[1729782240999,0.5404,2526.5,2526.3,0.39611]
[1729782241300,0.39614,2526.3,2526.2,0.39613]
[1729782241704,0.5404,2526.5,2526.0,0.39615]
[1729782241705,0.39617,2526.1,2526.0,0.39615]
[1729782241900,0.39617,2526.1,2526.0,0.39617]
[1729782242105,0.39615,2526.2,2526.1,0.39613]
[1729782242407,0.39617,2526.2,2526.1,0.39615]
[1729782242594,0.5406,2526.4,2525.9,6.6095964]
[1729782242799,0.5406,2526.4,2525.9,3.60399]
[1729782242800,0.39617,2526.0,2525.9,3.60399]
[1729782243507,0.39616,2526.2,2526.1,0.39615]
[1729782246292,0.5406,2526.4,2525.9,3.2078]
[1729782246496,0.5406,2526.4,2525.7,3.4017964]
[1729782246497,0.3962,2525.9,2525.8,0.39619]
[1729782246699,0.39619,2526.0,2525.9,0.39617]
[1729782247406,0.91039,2526.0,2525.9,0.39617]
[1729782247994,0.5142,2526.0,2525.9,0.39617]
[1729782248202,0.92767,2526.1,2525.9,3.4017964]
[1729782248500,0.92767,2526.1,2526.0,0.39617]
[1729782248700,0.39617,2526.0,2525.9,3.7979764]
[1729782248907,1.50453,2526.3,2525.9,3.4017964]
[1729782249106,0.5142,2526.3,2525.9,3.4017964]
[1729782249303,0.5142,2526.3,2526.2,0.39614]
[1729782249304,0.91034,2526.3,2526.2,0.39614]
[1729782249801,0.5142,2526.3,2526.2,0.39614]
[1729782250003,0.5315,2526.5,2526.1,6.6095964]
[1729782250305,0.39613,2526.4,2526.3,0.39611]
[1729782250504,1.52177,2526.5,2526.1,3.2078]
[1729782250713,0.39617,2526.1,2526.0,0.39616]
[1729782251003,0.39617,2526.1,2526.0,0.12388564]
[1729782251206,1.53059,2526.2,2525.8,3.2078]
[1729782251408,0.39619,2525.9,2525.8,3.2078]
[1729782251609,0.39621,2525.8,2525.7,3.7980064]
[1729782251804,0.39621,2525.8,2525.7,3.92190578]
[1729782252110,0.39624,2525.7,2525.6,0.39623]
[1729782252302,0.39621,2525.9,2525.8,0.3962]
[1729782252906,0.88757,2526.0,2525.9,0.39619]
[1729782253209,0.3962,2525.9,2525.8,0.39619]
[1729782253504,0.4914,2526.0,2525.8,0.12389724]
[1729782253700,0.88757,2526.0,2525.9,0.12389348]
[1729782253897,0.39619,2525.9,2525.8,0.39619]
[1729782254207,0.39619,2525.9,2525.8,0.52009764]
[1729782254609,0.39619,2525.9,2525.8,0.12389764]
[1729782254811,0.39621,2525.8,2525.7,0.39622]
[1729782255011,0.39624,2525.7,2525.6,0.39622]
[1729782255211,0.93624,2525.7,2525.6,0.71837263]
[1729782255603,0.93624,2525.7,2525.6,0.39622]
[1729782255906,0.93624,2525.7,2525.6,0.71837228]
[1729782256413,0.54,2525.7,2525.5,0.39624]
[1729782256711,0.39624,2525.6,2525.2,8.0971464]
[1729782256911,1.53057,2525.7,2525.2,6.6095964]
[1729782257113,0.39628,2525.3,2525.2,3.60409]
[1729782257523,0.39628,2525.3,2525.2,5.04158713]
[1729782257731,0.39628,2525.3,2525.2,4.79374279]
[1729782257924,0.39628,2525.3,2525.2,0.94180846]
[1729782258222,0.39628,2525.3,2525.2,0.52022216]
[1729782258422,0.39628,2525.3,2525.2,0.12392216]
[1729782258928,0.39628,2525.3,2525.2,0.52022216]
[1729782260124,0.5274,2525.5,2525.2,0.12392882]
[1729782260323,0.3963,2525.3,2525.2,0.39629]
[1729782260630,0.3963,2525.3,2525.2,0.52021599]
[1729782260830,0.5274,2525.5,2525.1,0.3963]
[1729782260831,0.39631,2525.2,2525.1,0.3963]
[1729782261132,0.92791,2525.2,2525.1,0.52023036]
[1729782261430,0.9279,2525.2,2525.1,0.52023036]
[1729782261725,0.5274,2525.5,2525.1,0.12393036]
[1729782261933,0.92367,2525.5,2525.4,0.39627]
[1729782262827,0.91085,2525.6,2525.2,7.6003464]
[1729782263134,0.91084,2525.6,2525.5,0.39625]
[1729782263431,0.5146,2525.6,2525.5,0.39625]